Cogmind - Beta 13 @@@ ROGUE MODE // 2024.06.25 @ 11:47:22 Player: Clockwork Slayer 55 Result: Destroyed by as-38012 with Assembled F-torch Performance ------------- Evolutions (1) 500 Regions Visited (3) 600 Robots Destroyed (26) 130 Value Destroyed (619) 619 Prototype IDs (0) 0 Alien Tech Used (0) 0 Bonus (0) 0 TOTAL SCORE: 1849 Bonus ------- None Cogmind --------- Core Integrity 0/400 Matter 264/300 Energy 124/125 System Corruption 14% Temperature Cool (20) Movement Rolling (110) Ox2 Location -9/Mines Parts ------- > --- POWER (1) -------- Light Ion Engine > --- PROPULSION (2) --- Wheel > --- UTILITY (3) ------ Large Storage Unit Visual Processing Unit ECM Suite > --- WEAPON (3) ------- (None) > --- INVENTORY (15) --- Flight Unit Flight Unit Flight Unit Heat Sink Heat Sink Structural Scanner Seismic Detector Peak State ------------ > --- POWER ------------ Nuclear Core > --- PROPULSION ------- Titanium Leg Titanium Leg > --- UTILITY ---------- Heat Sink Large Storage Unit Seismic Detector > --- WEAPON ----------- EM Pulse Gun Beam Cannon Heavy Assault Rifle > --- INVENTORY -------- Light Ion Engine Wheel Wheel Wheel Wheel Flight Unit Structural Scanner Visual Processing Unit ECM Suite Welding Torch [Rating: 17] Favorites ----------- Power Light Ion Engine Engine Light Ion Engine Power Core Nuclear Core Propulsion Aluminum Leg Leg Aluminum Leg Wheel Wheel Flight Unit Flight Unit Utility Large Storage Unit Device Seismic Detector Storage Large Storage Unit Processor Visual Processing Unit Protection Hardened Light Armor Plating Weapon EM Pulse Gun Energy Gun EM Pulse Gun Energy Cannon Beam Cannon Ballistic Gun Light Assault Rifle Special Weapon Mining Laser Build | -11 -10 -9 -9 ------- Run | Yrd Mat Mat Min Slots Evolved 2 | . . 2 . Power . | . . . . Propulsion . | . . . . Utility 1 | . . 1 . Weapon 1 | . . 1 . Parts Attached 32 | 6 2 7 17 Power 4 | 1 . 1 2 Engine 3 | 1 . . 2 Core 1 | . . 1 . Reactor . | . . . . Propulsion 10 | 2 . 2 6 Treads . | . . . . Leg 4 | 2 . 2 . Wheel 4 | . . . 4 Hover . | . . . . Flight 2 | . . . 2 Utility 8 | 1 2 1 4 Device 5 | 1 1 1 2 Storage 1 | . 1 . . Processor 1 | . . . 1 Hackware . | . . . . Protection 1 | . . . 1 Artifact . | . . . . Weapon 10 | 2 . 3 5 Energy Gun 2 | 1 . 1 . Energy Cannon 1 | . . 1 . Ballistic Gun 5 | 1 . 1 3 Ballistic Cannon . | . . . . Launcher . | . . . . Special Weapon 2 | . . . 2 Impact Weapon . | . . . . Slashing Weapon . | . . . . Piercing Weapon . | . . . . Special Melee Weapon . | . . . . Unidentified Prototypes . | . . . . Parts Lost 18 | . . 2 16 Power 2 | . . . 2 Propulsion 4 | . . . 4 Utility 2 | . . . 2 Weapon 10 | . . 2 8 Highest Loss Streak 6 | . . 2 6 To Critical Strikes 1 | . . . 1 Average Slot Usage (%) 92 | . 99 95 81 Engine 7 | . 14 3 7 Core 3 | . . 7 2 Leg 20 | . 28 22 9 Wheel 1 | . . . 6 Device 15 | . 14 22 9 Storage 11 | . 13 11 11 Processor 1 | . . . 4 Protection 2 | . . . 8 Energy Gun 8 | . 14 10 . Energy Cannon 5 | . . 11 2 Ballistic Gun 12 | . 14 7 18 Naked Turns . | . . . . Heaviest Build 37 | 8 28 37 37 Greatest Support 34 | 20 20 34 34 Greatest Overweight (x) 3 | . 1 1 3 Average Overweight (x) 1 | . . . 1 Largest Inventory Capacity 15 | 5 15 15 15 Average Capacity 14 | 5 14 15 15 Most Carried 15 | 5 10 15 15 Average Carried 9 | 2 6 10 10 Final Capacity 15 | 5 15 15 15 Final Carried 15 | 5 10 15 7 Class Distribution -------------------- 61% | Mutant 30% | Gunner 8% | Scavenger-Tank Dominant Class ---------------- Mutant | -10/Materials Gunner | -9/Materials Mutant | -9/Mines Resources | -11 -10 -9 -9 ----------- Run | Yrd Mat Mat Min Matter Collected 617 | 269 77 116 155 Remotely . | . . . . Salvage Created 706 | 49 182 286 189 Parts 54 | 5 16 12 21 Haulers Intercepted . | . . . . Recyclers Shooed . | . . . . Parts Field Recycled . | . . . . Retrieved Matter . | . . . . Parts Self-Destructed . | . . . . Prevented . | . . . . Kills | -11 -10 -9 -9 ------- Run | Yrd Mat Mat Min Combat Hostiles Destroyed 21 | 1 5 5 10 Melee 2 | . . . 2 Guns 14 | 1 5 1 7 Cannons 5 | . . 4 1 Classes Destroyed 6 | 2 3 1 . Worker 1 | . 1 . . Tunneler 1 | 1 . . . Watcher 3 | . 2 1 . Swarmer 10 | . 3 . 7 Grunt 8 | 1 2 2 3 Sentry 3 | . . 3 . Best Kill Streak 4 | 2 3 2 4 Combat Bots Only 4 | 1 2 2 4 Max Kills in Single Turn 2 | 2 1 1 1 Gunslinging . | . . . . Exploded . | . . . . Melee 1 | . . . 1 Uniques/NPCs Destroyed . | . . . . Combat | -11 -10 -9 -9 -------- Run | Yrd Mat Mat Min Hostile Shots Fired 252 | 4 38 29 181 Missed 68 | 1 14 13 40 Damage Taken 2086 | 31 221 254 1580 Core 439 | . 33 43 363 Absorbed by Shields . | . . . . Core Remaining (%) 93 | 100 86 . . Volleys Fired 82 | 3 31 16 32 Largest 3 | 2 2 3 3 Hottest 123 | 60 60 123 123 Shots Fired 160 | 6 62 33 59 Gun 134 | 6 62 17 49 Cannon 26 | . . 16 10 Launcher . | . . . . Special . | . . . . Kinetic 85 | 3 31 7 44 Thermal 26 | . . 16 10 Explosive . | . . . . Electromagnetic 49 | 3 31 10 5 Robot Hit Streak 13 | 1 5 13 4 Robot Miss Streak 12 | 5 12 1 5 Penetration Max . | . . . . Secondary Targets 1 | . . . 1 Max Gunslinging Chain 1 | . . . 1 Shots Hit Robots 78 | 1 23 24 30 Core Hits 40 | 2 11 11 16 Critical Kills 1 | 1 . . . Critical Parts Destroyed . | . . . . Critical Strikes 2 | 1 1 . . Destroy 1 | 1 . . . Corrupt 1 | . 1 . . Melee Attacks . | . . . . Impact . | . . . . Slashing . | . . . . Piercing . | . . . . Sneak Attacks . | . . . . Combat Hostiles . | . . . . Follow-up Attacks . | . . . . Damage Inflicted 1258 | 26 387 423 422 Guns 757 | 26 355 123 253 Cannons 332 | . . 247 85 Explosions 130 | . 32 53 45 Melee . | . . . . Ramming 39 | . . . 39 Kinetic 442 | 14 169 44 215 Thermal 462 | . 32 300 130 Explosive . | . . . . Electromagnetic 315 | 12 186 79 38 Impact . | . . . . Slashing . | . . . . Piercing . | . . . . Highest Corruption 14 | . . 5 14 Average Corruption 4 | . . 2 5 Corruption Purged . | . . . . Corruption Blocked . | . . . . Effects 18 | . . 6 12 Message Errors 5 | . . 2 3 Matter Fused 6 | . . 2 4 Heat Flow Errors 2 | . . 1 1 Parts Rejected 1 | . . . 1 Parts Fused 1 | . . . 1 Data Loss (minor) 1 | . . 1 . Misfires 1 | . . . 1 Weapon Failures 1 | . . . 1 Overload Shots . | . . . . Overflow Damage . | . . . . Projectiles . | . . . . Explosions . | . . . . Melee . | . . . . Knockbacks . | . . . . Impact . | . . . . Kinetic . | . . . . Secondary . | . . . . Self-Inflicted Damage 51 | . . . 51 Shots 1 | . . . 1 Rammed 4 | . . . 4 Targets Rammed 16 | . . . 16 Kicked 12 | . . . 12 Crushed . | . . . . Highest Temperature 182 | 18 18 94 182 Average Temperature 60 | 12 12 42 89 Received Heat Transfer 482 | 18 48 117 299 Siege Activations . | . . . . Robots Corrupted 1 | . 1 . . Combat Hostiles . | . . . . Parts Fried 3 | . 3 . . Impact Corruptions . | . . . . Robots Melted . | . . . . Combat Hostiles . | . . . . Parts Melted . | . . . . Heat Transferred 903 | . 50 618 235 Parts Sabotaged . | . . . . Parts Stolen . | . . . . Parts Stripped . | . . . . Power Chain Reactions 3 | . 1 1 1 Alert | -11 -10 -9 -9 ------- Run | Yrd Mat Mat Min Peak Influence 177 | 25 125 144 177 Initial 22 | . 16 22 17 Average 59 | 4 49 39 111 Maximum Alert Level . | . . . . Low Security (%) 100 | 100 100 100 100 Level 1 . | . . . . Level 2 . | . . . . Level 3 . | . . . . Level 4 . | . . . . Level 5 . | . . . . High Security . | . . . . Max Security . | . . . . Squads Dispatched . | . . . . Investigation . | . . . . Extermination . | . . . . Reinforcement . | . . . . Assault . | . . . . Garrison . | . . . . Intercept . | . . . . Searches Triggered . | . . . . Construction Impeded . | . . . . Haulers Reinforced . | . . . . Active Scanning Responses . | . . . . Cargo Convoy Interrupts . | . . . . Stealth | -11 -10 -9 -9 --------- Run | Yrd Mat Mat Min Distress Signals . | . . . . Communications Jammed . | . . . . Distress Signals . | . . . . Times Spotted 35 | 1 7 6 21 Peak Tracking Total 9 | 1 3 2 9 Tactical Retreats 1 | . . . 1 Traps | -11 -10 -9 -9 ------- Run | Yrd Mat Mat Min Traps Triggered 5 | . . 5 . Indirectly . | . . . . Trap Hack Attempts . | . . . . Triggered . | . . . . Disarmed . | . . . . Reprogrammed . | . . . . Reused . | . . . . Traps Extracted . | . . . . Installed . | . . . . Triggered . | . . . . Machines | -11 -10 -9 -9 ---------- Run | Yrd Mat Mat Min Machines Disabled 3 | . 1 . 2 Max in Single Turn 2 | . 1 . 2 Machines Repaired . | . . . . Machines Dismantled . | . . . . Machines Sabotaged . | . . . . Overloaded Fab Kills . | . . . . Hacking | -11 -10 -9 -9 --------- Run | Yrd Mat Mat Min Machines Accessed 5 | . 2 3 . Terminals 4 | . 2 2 . Fabricators . | . . . . Repair Stations . | . . . . Recycling Units . | . . . . Scanalyzers 1 | . . 1 . Garrison Access . | . . . . Total Hacks 14 | . 5 9 . Successful 7 | . 2 5 . Failed 7 | . 3 4 . Catastrophic . | . . . . Database Lockouts . | . . . . Manual . | . . . . Terminals 12 | . 5 7 . Fabricators . | . . . . Repair Stations . | . . . . Recycling Units . | . . . . Scanalyzers 2 | . . 2 . Garrison Access . | . . . . Terminal Hacks 5 | . 2 3 . Record 2 | . 1 1 . Alert Level 2 | . 1 1 . Unreport Threat 1 | . . 1 . Fabricator Hacks . | . . . . Repair Station Hacks . | . . . . Recycling Unit Hacks . | . . . . Scanalyzer 2 | . . 2 . Insert Component 1 | . . 1 . Analyze 1 | . . 1 . Garrison Access Hacks . | . . . . Unauthorized Hacks . | . . . . Terminals . | . . . . Fabricators . | . . . . Repair Stations . | . . . . Recycling Units . | . . . . Scanalyzers . | . . . . Garrison Access . | . . . . Data Cores Recovered . | . . . . Used . | . . . . Hacking Detections 3 | . 1 2 . Full Trace Events . | . . . . Feedback Events . | . . . . Feedback Blocked . | . . . . Robot Schematics Acquired . | . . . . Robots Built . | . . . . Authchips . | . . . . Time . | . . . . Total Robot Build Rating . | . . . . Part Schematics Acquired 1 | . . 1 . Parts Built . | . . . . Authchips . | . . . . Time . | . . . . Total Part Build Rating . | . . . . Parts Repaired . | . . . . Time . | . . . . Parts Recycled . | . . . . Recycled Matter . | . . . . Retrieved Matter . | . . . . Retrieved Components . | . . . . Parts Scanalyzed 1 | . . 1 . Part Schematics Acquired 1 | . . 1 . Parts Damaged . | . . . . Bothacking | -11 -10 -9 -9 ------------ Run | Yrd Mat Mat Min Used RIF Installer . | . . . . Robots Hacked . | . . . . Non-combat . | . . . . Combat . | . . . . Robot Hacks Applied . | . . . . Relay Couplers Released . | . . . . Fabnet Peak Effective % . | . . . . Robots Rewired . | . . . . Allies Hacked . | . . . . Hacks Repelled . | . . . . Allies | -11 -10 -9 -9 -------- Run | Yrd Mat Mat Min Total Allies . | . . . . Largest Group . | . . . . Highest-Rated Group . | . . . . Highest-Rated Ally . | . . . . Total Orders . | . . . . Ally Attacks . | . . . . Total Damage . | . . . . Kills . | . . . . Allies Corrupted . | . . . . Allies Melted . | . . . . Intel | -11 -10 -9 -9 ------- Run | Yrd Mat Mat Min Robot Analysis Total . | . . . . Derelict Logs Recovered 1 | . . . 1 Drone Launches . | . . . . Drone Recoveries . | . . . . Exploration | -11 -10 -9 -9 ------------- Run | Yrd Mat Mat Min Turns Passed 1622 | 93 450 639 440 Spaces Moved 767 | 69 189 300 209 Core 21 | 21 . . . Treads . | . . . . Legs 610 | 48 189 300 73 Wheels 131 | . . . 131 Hover . | . . . . Flight 5 | . . . 5 Fastest Speed 50 | 50 120 130 95 Average Speed 168 | 98 185 192 142 Slowest Speed 277 | 120 190 200 277 Overloaded Moves . | . . . . Propulsion Burnouts . | . . . . Robots Hopped . | . . . . Cave-ins Triggered . | . . . . Exploration Rate (%) 25 | 5 31 26 39 Regions Visited 3 Branch Regions 1 Pre-discovered Areas 1 | . . . 1 Known Exits Taken . | . . . . Unknown Exits Taken 3 | 1 1 1 . Scrap Searched . | . . . . Spaces Dug . | . . . . Terrain Destroyed 5 | . 3 2 . Melee . | . . . . Projectile . | . . . . AOE 5 | . 3 2 . Terrain Rammed . | . . . . Walls Destroyed . | . . . . Machines Disabled . | . . . . Actions | -11 -10 -9 -9 --------- Run | Yrd Mat Mat Min Total 952 | 88 227 336 301 Wait 17 | . . 1 16 Move 764 | 68 188 299 209 Hop . | . . . . Pick Up 34 | 11 5 11 7 Fast Attach 1 | . 1 . . Attach 29 | 6 1 6 16 Detach 3 | . 1 . 2 Swap 2 | . . 1 1 Drop 4 | . . 2 2 Fire 82 | 3 31 16 32 Melee . | . . . . Ram 4 | . . . 4 Kick 12 | . . . 12 Crush . | . . . . Escape Stasis . | . . . . Rewire . | . . . . Trap . | . . . . Miscellaneous . | . . . . Route ------- -11/Scrapyard -10/Materials -9/Materials -9/Mines History --------- Turn | Location | Event 2 | -11/Scrapyard | Met Revision 17 66 | -11/Scrapyard | Discovered new exit (range 8) 94 | -11/Scrapyard | Entered Materials 305 | -10/Materials | Build established: Mutant 522 | -10/Materials | Discovered new exit (range 9) 544 | -10/Materials | Entered another Materials area 544 | -9/Materials | Evolved 2 slots: Utility x1, Weapon x1 939 | -9/Materials | Discovered new exit (range 12) 1105 | -9/Materials | Build established: Gunner 1183 | -9/Materials | Entered Mines 1320 | -9/Mines | Lost 6 parts (1p1u4w) 1443 | -9/Mines | Learned location of Recycling (-8) 1537 | -9/Mines | Found a hidden stash of uninstalled traps 1553 | -9/Mines | Assembled infested the area 1558 | -9/Mines | Assisted by a Guerilla fighting off Assembled 1589 | -9/Mines | Core integrity fell below 50% 1618 | -9/Mines | Core integrity fell below 20% 1620 | -9/Mines | System corruption reached 10% 1623 | -9/Mines | Destroyed by as-38012 with Assembled F-torch Last Messages --------------- coming from, and they're closing on this area, come on!" RY-AOL(h): "I'll hold them off! Go on ahead or try to find another way!" RY-AOL(h) system corrupted by crushing effect. RY-AOL(h) system terminally corrupted. System corrupted: Heat flow error (+117). Critical hit (Burn: +80). Wheel destroyed. Hrd. Light Armor Plating destroyed. Lgt. Assault Rifle destroyed. Wheel destroyed. System corrupted by crushing effect (+4). Knocked back. Slammed into as-02262. Knocked back. Lgt. Assault Rifle destroyed. System corrupted by crushing effect (+5). [Achievement: System Compromised] Slammed into as-55860. Map ----- +----------------------------------------------------+ | | | | | | | | | | | | | | | | | | | | | | | | | ?????????????????????????????????????????????????? | | ?????????????????????????????????????????????????? | | ?????????????????????????????????????????????????? | | ?????????????????????????????????????????????????? | | ?????????????????????????????????????????????????? | | ?????????????????????????????????????????????????? | | ?????????????????????????????????????????????????? | | ?????????????????????????????????????????????????? | | ?????????????????????????????????????????????????? | | ?????????????????????????????????????????????????? | | ????????????????????????????####?????????????????? | | ????????????????????????##### ##????????????????? | | ??????????????????####?## #????????????????? | | ?????????????????## ### @ #????????????????? | | ????????????????## aa a ##???????????????? | | ????????????????# a #???????????????? | | ????????????????# a a ##??????????????? | | ????????????????## ## a ##?????????????? | | ?????????????????###?## ### ##????????????? | | ??????????????????????## ##?## ##???????????? | | ???????????????????????#####???## #???????????? | | ????????????????????????????????# #???????????? | | ????????????????????????????????# ##???????????? | | ????????????????????????????????# ???????????? | | ???????????????????????????????## ## ??????????? | | ????????????????????????????#### ### ######### | | ????????????????????????????# | | ???????????????????????????# | | ?????????#?????????????????# ######## ####### | | ?????????# ????????????????## ###??????# #?????? | | ?????????? ###??????????????####?????????# #?????? | | ??????????? #???????????????????????????# #?????? | | ???????????# #?????????????????######????# #?????? | | ############=####?????????????## ####?# #?????? | | ## ===#?????????????# & ### #?????? | | """ "" ##### #?????????????# & & ## #?????? | | """! " #???# #?????????????# && #?????? | | """% " #???# #?????????????# ####?????? | +----------------------------------------------------+ Best States ------------- Heat Dissipation 38 Energy Generation 14 Energy Capacity 240 Matter Stores 300 Matter Capacity 300 Sight Range 18 Terrain Scan Density 10 ECM Strength 1 Armor Coverage 150 Evasion (%) 55 Item Schematics ----------------- Heat Sink | -9/Materials | Scanalyzed Robot Schematics ------------------ None Fabricated ------------ Nothing Alien Tech Used ----------------- None Achievements -------------- Everything Is Under Control Power Corrupts System Compromised Challenges ------------ None Game ------ Seed PowerMomentumSpecial Manual? 0 Play Time 00:33:45 Cumulative 1.1 hours Start 2024.06.25 @ 11:14:45 End 2024.06.25 @ 11:47:22 Sessions 1 Manual Loads 0 Difficulty Rogue Special Mode None Game No. 3 Rogue 3 Adventurer 0 Explorer 0 Win Type - Total 0 Types 0/0/0/0/0/0/0/0/0 Lore% 0 Gallery% 2 Achievement% 3 Wizard Run 0 Options --------- Layout 1 ASCII 0 Keyboard 0 Movement Mouse Keybinds 0 Fullscreen 1 Font 24/Smallcaps Map View 50x35 Zoom Use 0% Tactical HUD 0 Map Filters NONE Filters NONE Steam 1 RUN: e6c64049-970b-4477-9947-e494a44eaaa5